[Event "Early Titled Tuesday Blitz | February 8 2022"]
[White "Korkmaz, Necmettin"]
[Black "Derraugh, Geordie"]
[WhiteFideId "6303285"]
[BlackFideId "2603950"]
[WhiteElo "2094"]
[BlackElo "2116"]
[Result "1-0"]
[Round "04"]
[TimeControl "180+1"]
[Date "2022.02.08"]
[WhiteClock "0:02:13"]
[BlackClock "0:01:26"]

1. e4 {[%clk 0:03:00]}  e5 {[%clk 0:02:59]} 2. Nc3 {[%clk 0:03:00]}  Nc6 {[%clk 0:02:58]} 3. f4 {[%clk 0:02:59]}  d6 {[%clk 0:02:57]} 4. Nf3 {[%clk 0:02:58]}  Bg4 {[%clk 0:02:57]} 5. Bb5 {[%clk 0:02:57]}  exf4 {[%clk 0:02:43]} 6. d4 {[%clk 0:02:51]}  Bxf3 {[%clk 0:02:40]} 7. Qxf3 {[%clk 0:02:51]}  Qh4+ {[%clk 0:02:39]} 8. g3 {[%clk 0:02:44]}  fxg3 {[%clk 0:02:35]} 9. hxg3 {[%clk 0:02:45]}  Qf6 {[%clk 0:02:33]} 10. Qxf6 {[%clk 0:02:44]}  Nxf6 {[%clk 0:02:34]} 11. d5 {[%clk 0:02:45]}  a6 {[%clk 0:02:34]} 12. Ba4 {[%clk 0:02:45]}  b5 {[%clk 0:02:34]} 13. Nxb5 {[%clk 0:02:46]}  axb5 {[%clk 0:02:32]} 14. Bxb5 {[%clk 0:02:45]}  O-O-O {[%clk 0:02:30]} 15. Bxc6 {[%clk 0:02:43]}  Nxe4 {[%clk 0:02:30]} 16. O-O {[%clk 0:02:41]}  Nc5 {[%clk 0:02:16]} 17. Rxf7 {[%clk 0:02:37]}  h6 {[%clk 0:02:01]} 18. Be3 {[%clk 0:02:31]}  Na6 {[%clk 0:02:00]} 19. c3 {[%clk 0:02:19]}  Nb8 {[%clk 0:02:00]} 20. Bb5 {[%clk 0:02:18]}  g5 {[%clk 0:01:53]} 21. Bd4 {[%clk 0:02:18]}  Rg8 {[%clk 0:01:53]} 22. a4 {[%clk 0:02:15]}  Kb7 {[%clk 0:01:44]} 23. a5 {[%clk 0:02:15]}  Na6 {[%clk 0:01:44]} 24. b4 {[%clk 0:02:13]}  h5 {[%clk 0:01:34]} 25. Bc6+ {[%clk 0:02:13]}  Kb8 {[%clk 0:01:28]} 26. b5 {[%clk 0:02:13]}  Nc5 {[%clk 0:01:28]} 27. a6 {[%clk 0:02:13]}  Rc8 {[%clk 0:01:26]} 28. a7# {[%clk 0:02:13]} 1-0


[Site "https://www.chess.com"]

[Event "Early Titled Tuesday Blitz | February 8 2022"]
[White "Kushagra, Mohan"]
[Black "Gracia Alvarez, Gerardo Antonio"]
[WhiteFideId "25033638"]
[BlackFideId "5109124"]
[WhiteElo "1886"]
[BlackElo "2139"]
[Result "1-0"]
[Round "04"]
[TimeControl "180+1"]
[Date "2022.02.08"]
[WhiteClock "0:00:07"]
[BlackClock "0:00:05"]

1. e4 {[%clk 0:03:00]}  c5 {[%clk 0:03:00]} 2. Nf3 {[%clk 0:02:55]}  Nc6 {[%clk 0:03:00]} 3. d4 {[%clk 0:02:55]}  cxd4 {[%clk 0:03:01]} 4. Nxd4 {[%clk 0:02:56]}  Nf6 {[%clk 0:03:01]} 5. Nc3 {[%clk 0:02:56]}  e5 {[%clk 0:03:02]} 6. Ndb5 {[%clk 0:02:56]}  h6 {[%clk 0:03:02]} 7. Nd5 {[%clk 0:02:52]}  Nxd5 {[%clk 0:03:02]} 8. exd5 {[%clk 0:02:52]}  a6 {[%clk 0:03:03]} 9. dxc6 {[%clk 0:02:50]}  axb5 {[%clk 0:03:03]} 10. cxd7+ {[%clk 0:02:50]}  Bxd7 {[%clk 0:03:03]} 11. Be2 {[%clk 0:02:50]}  Bc6 {[%clk 0:03:03]} 12. O-O {[%clk 0:02:50]}  Qxd1 {[%clk 0:02:59]} 13. Rxd1 {[%clk 0:02:51]}  Bc5 {[%clk 0:02:59]} 14. Bd2 {[%clk 0:02:47]}  Ke7 {[%clk 0:02:56]} 15. b4 {[%clk 0:02:42]}  Bb6 {[%clk 0:02:32]} 16. c4 {[%clk 0:02:40]}  Bd4 {[%clk 0:02:25]} 17. Rac1 {[%clk 0:02:40]}  Rxa2 {[%clk 0:02:01]} 18. cxb5 {[%clk 0:02:40]}  Bd5 {[%clk 0:02:01]} 19. Kf1 {[%clk 0:02:36]}  Rha8 {[%clk 0:01:48]} 20. Be3 {[%clk 0:02:33]}  Bxe3 {[%clk 0:01:26]} 21. fxe3 {[%clk 0:02:27]}  Ke6 {[%clk 0:01:08]} 22. Bg4+ {[%clk 0:01:32]}  f5 {[%clk 0:01:01]} 23. Bxf5+ {[%clk 0:01:32]}  Kxf5 {[%clk 0:01:01]} 24. Rxd5 {[%clk 0:01:31]}  Rb2 {[%clk 0:00:56]} 25. Rd7 {[%clk 0:01:22]}  g5 {[%clk 0:00:49]} 26. Rxb7 {[%clk 0:01:06]}  Raa2 {[%clk 0:00:49]} 27. Rf7+ {[%clk 0:01:03]}  Ke4 {[%clk 0:00:48]} 28. b6 {[%clk 0:00:54]}  Rxb4 {[%clk 0:00:47]} 29. Rf6 {[%clk 0:00:30]}  h5 {[%clk 0:00:40]} 30. Rh6 {[%clk 0:00:23]}  h4 {[%clk 0:00:34]} 31. Rg6 {[%clk 0:00:18]}  Kf5 {[%clk 0:00:30]} 32. Rgc6 {[%clk 0:00:17]}  Rbb2 {[%clk 0:00:26]} 33. b7 {[%clk 0:00:12]}  Rxb7 {[%clk 0:00:24]} 34. R6c2 {[%clk 0:00:11]}  Rbb2 {[%clk 0:00:20]} 35. Rxb2 {[%clk 0:00:09]}  Rxb2 {[%clk 0:00:21]} 36. Rc4 {[%clk 0:00:08]}  g4 {[%clk 0:00:19]} 37. h3 {[%clk 0:00:07]}  gxh3 {[%clk 0:00:13]} 38. gxh3 {[%clk 0:00:08]}  Kg5 {[%clk 0:00:13]} 39. Rg4+ {[%clk 0:00:08]}  Kh5 {[%clk 0:00:14]} 40. Re4 {[%clk 0:00:09]}  Kg6 {[%clk 0:00:11]} 41. Rxh4 {[%clk 0:00:08]}  Kf5 {[%clk 0:00:10]} 42. Rg4 {[%clk 0:00:07]}  Rh2 {[%clk 0:00:10]} 43. Rg3 {[%clk 0:00:08]}  Ke4 {[%clk 0:00:10]} 44. Kg1 {[%clk 0:00:08]}  Rc2 {[%clk 0:00:09]} 45. h4 {[%clk 0:00:08]}  Rc6 {[%clk 0:00:08]} 46. Kg2 {[%clk 0:00:08]}  Kf5 {[%clk 0:00:07]} 47. Kh3 {[%clk 0:00:09]}  Rh6 {[%clk 0:00:07]} 48. Rf3+ {[%clk 0:00:09]}  Ke4 {[%clk 0:00:07]} 49. Rg3 {[%clk 0:00:09]}  Kf5 {[%clk 0:00:07]} 50. Rg4 {[%clk 0:00:09]}  Rh7 {[%clk 0:00:05]} 51. e4+ {[%clk 0:00:09]}  Kf6 {[%clk 0:00:05]} 52. Rg3 {[%clk 0:00:10]}  Rb7 {[%clk 0:00:05]} 53. Kg4 {[%clk 0:00:10]}  Rg7+ {[%clk 0:00:05]} 54. Kh3 {[%clk 0:00:09]}  Rb7 {[%clk 0:00:05]} 55. Rf3+ {[%clk 0:00:10]}  Kg6 {[%clk 0:00:05]} 56. Kg4 {[%clk 0:00:10]}  Kh6 {[%clk 0:00:04]} 57. Kf5 {[%clk 0:00:10]}  Rf7+ {[%clk 0:00:04]} 58. Kg4 {[%clk 0:00:10]}  Rg7+ {[%clk 0:00:04]} 59. Kh3 {[%clk 0:00:10]}  Rg1 {[%clk 0:00:04]} 60. Rf5 {[%clk 0:00:10]}  Rh1+ {[%clk 0:00:03]} 61. Kg3 {[%clk 0:00:11]}  Rg1+ {[%clk 0:00:04]} 62. Kf3 {[%clk 0:00:10]}  Rh1 {[%clk 0:00:03]} 63. Rxe5 {[%clk 0:00:08]}  Rxh4 {[%clk 0:00:03]} 64. Rf5 {[%clk 0:00:07]}  Kg6 {[%clk 0:00:03]} 65. Ke3 {[%clk 0:00:06]}  Rh3+ {[%clk 0:00:03]} 66. Kd4 {[%clk 0:00:07]}  Ra3 {[%clk 0:00:04]} 67. Ke5 {[%clk 0:00:07]}  Ra5+ {[%clk 0:00:04]} 68. Kf4 {[%clk 0:00:07]}  Ra1 {[%clk 0:00:04]} 69. Rb5 {[%clk 0:00:07]}  Rf1+ {[%clk 0:00:04]} 70. Ke5 {[%clk 0:00:07]}  Kf7 {[%clk 0:00:04]} 71. Rb7+ {[%clk 0:00:07]}  Ke8 {[%clk 0:00:05]} 72. Ke6 {[%clk 0:00:07]}  Ra1 {[%clk 0:00:05]} 73. Rb8# {[%clk 0:00:07]} 1-0


[Site "https://www.chess.com"]

[Event "Early Titled Tuesday Blitz | February 8 2022"]
[White "Kuzmin, Roman"]
[Black "Khoroshev, Nikita"]
[WhiteFideId "44134932"]
[BlackFideId "14200287"]
[WhiteElo "1978"]
[BlackElo "2354"]
[Result "0-1"]
[Round "04"]
[TimeControl "180+1"]
[Date "2022.02.08"]
[WhiteClock "0:00:24"]
[BlackClock "0:00:08"]

1. e4 {[%clk 0:02:58]}  e5 {[%clk 0:02:57]} 2. Nf3 {[%clk 0:02:58]}  Nc6 {[%clk 0:02:57]} 3. Bb5 {[%clk 0:02:58]}  a6 {[%clk 0:02:56]} 4. Ba4 {[%clk 0:02:58]}  Nf6 {[%clk 0:02:56]} 5. O-O {[%clk 0:02:59]}  b5 {[%clk 0:02:54]} 6. Bb3 {[%clk 0:02:58]}  Bb7 {[%clk 0:02:55]} 7. Re1 {[%clk 0:02:57]}  Be7 {[%clk 0:02:52]} 8. d3 {[%clk 0:02:55]}  O-O {[%clk 0:02:47]} 9. a4 {[%clk 0:02:53]}  d6 {[%clk 0:02:43]} 10. Nc3 {[%clk 0:02:42]}  b4 {[%clk 0:02:43]} 11. Ne2 {[%clk 0:02:41]}  Na5 {[%clk 0:02:41]} 12. Ba2 {[%clk 0:02:42]}  c5 {[%clk 0:02:36]} 13. Bd2 {[%clk 0:02:41]}  Bc8 {[%clk 0:02:22]} 14. c3 {[%clk 0:02:31]}  Rb8 {[%clk 0:02:20]} 15. cxb4 {[%clk 0:02:24]}  cxb4 {[%clk 0:02:21]} 16. Ng3 {[%clk 0:02:13]}  Be6 {[%clk 0:02:04]} 17. Bxe6 {[%clk 0:02:05]}  fxe6 {[%clk 0:02:05]} 18. d4 {[%clk 0:02:05]}  exd4 {[%clk 0:01:41]} 19. Nxd4 {[%clk 0:02:04]}  Qd7 {[%clk 0:01:41]} 20. Rc1 {[%clk 0:01:42]}  Rfc8 {[%clk 0:01:04]} 21. Rxc8+ {[%clk 0:01:40]}  Qxc8 {[%clk 0:01:05]} 22. e5 {[%clk 0:01:34]}  dxe5 {[%clk 0:01:01]} 23. Rxe5 {[%clk 0:01:35]}  Nc4 {[%clk 0:00:54]} 24. Rxe6 {[%clk 0:01:30]}  Bc5 {[%clk 0:00:45]} 25. Rc6 {[%clk 0:01:23]}  Qd7 {[%clk 0:00:44]} 26. Ngf5 {[%clk 0:00:45]}  Bxd4 {[%clk 0:00:16]} 27. Rxc4 {[%clk 0:00:44]}  Bxb2 {[%clk 0:00:13]} 28. Qb3 {[%clk 0:00:44]}  Kh8 {[%clk 0:00:06]} 29. Qxb2 {[%clk 0:00:43]}  Qxf5 {[%clk 0:00:06]} 30. h3 {[%clk 0:00:39]}  a5 {[%clk 0:00:05]} 31. Bf4 {[%clk 0:00:38]}  Re8 {[%clk 0:00:04]} 32. Be3 {[%clk 0:00:38]}  h6 {[%clk 0:00:03]} 33. Rc5 {[%clk 0:00:38]}  Qd3 {[%clk 0:00:03]} 34. Rxa5 {[%clk 0:00:39]}  b3 {[%clk 0:00:04]} 35. Rb5 {[%clk 0:00:38]}  Qd1+ {[%clk 0:00:04]} 36. Kh2 {[%clk 0:00:38]}  Qd6+ {[%clk 0:00:05]} 37. g3 {[%clk 0:00:37]}  Ne4 {[%clk 0:00:04]} 38. Rxb3 {[%clk 0:00:36]}  Re7 {[%clk 0:00:04]} 39. Bf4 {[%clk 0:00:36]}  Qd5 {[%clk 0:00:03]} 40. Rb8+ {[%clk 0:00:36]}  Kh7 {[%clk 0:00:03]} 41. Rb5 {[%clk 0:00:35]}  Qf7 {[%clk 0:00:03]} 42. Qb1 {[%clk 0:00:33]}  g5 {[%clk 0:00:03]} 43. Re5 {[%clk 0:00:33]}  Rxe5 {[%clk 0:00:02]} 44. Bxe5 {[%clk 0:00:33]}  Qxf2+ {[%clk 0:00:03]} 45. Kh1 {[%clk 0:00:33]}  Qf3+ {[%clk 0:00:04]} 46. Kg1 {[%clk 0:00:33]}  Qe3+ {[%clk 0:00:04]} 47. Kf1 {[%clk 0:00:33]}  Qf3+ {[%clk 0:00:04]} 48. Kg1 {[%clk 0:00:31]}  Qf5 {[%clk 0:00:04]} 49. Bd4 {[%clk 0:00:29]}  Nxg3 {[%clk 0:00:04]} 50. Qxf5+ {[%clk 0:00:28]}  Nxf5 {[%clk 0:00:05]} 51. Bc5 {[%clk 0:00:28]}  Ng3 {[%clk 0:00:04]} 52. a5 {[%clk 0:00:27]}  Ne4 {[%clk 0:00:05]} 53. a6 {[%clk 0:00:27]}  Nxc5 {[%clk 0:00:03]} 54. a7 {[%clk 0:00:28]}  Ne6 {[%clk 0:00:03]} 55. a8=Q {[%clk 0:00:28]}  Nf4 {[%clk 0:00:04]} 56. Qb7+ {[%clk 0:00:28]}  Kg6 {[%clk 0:00:04]} 57. Kh2 {[%clk 0:00:29]}  Kh5 {[%clk 0:00:05]} 58. Qf3+ {[%clk 0:00:29]}  Kg6 {[%clk 0:00:06]} 59. h4 {[%clk 0:00:29]}  Kg7 {[%clk 0:00:05]} 60. hxg5 {[%clk 0:00:29]}  hxg5 {[%clk 0:00:06]} 61. Qg4 {[%clk 0:00:29]}  Kf6 {[%clk 0:00:07]} 62. Qc8 {[%clk 0:00:29]}  Ng6 {[%clk 0:00:08]} 63. Kg3 {[%clk 0:00:28]}  Ne5 {[%clk 0:00:08]} 64. Qd8+ {[%clk 0:00:28]}  Kf5 {[%clk 0:00:08]} 65. Qf8+ {[%clk 0:00:28]}  Ke6 {[%clk 0:00:08]} 66. Kf2 {[%clk 0:00:27]}  Ng4+ {[%clk 0:00:07]} 67. Kf3 {[%clk 0:00:26]}  Nf6 {[%clk 0:00:07]} 68. Qg7 {[%clk 0:00:24]}  Kf5 {[%clk 0:00:08]} 69. Qf7 {[%clk 0:00:22]}  g4+ {[%clk 0:00:07]} 70. Kg3 {[%clk 0:00:22]}  Kg5 {[%clk 0:00:06]} 71. Qe6 {[%clk 0:00:22]}  Nh5+ {[%clk 0:00:05]} 72. Kg2 {[%clk 0:00:22]}  Nf4+ {[%clk 0:00:05]} 73. Kg3 {[%clk 0:00:16]}  Nxe6 {[%clk 0:00:05]} 74. Kf2 {[%clk 0:00:17]}  Kf5 {[%clk 0:00:06]} 75. Kg2 {[%clk 0:00:18]}  Ng5 {[%clk 0:00:06]} 76. Kg1 {[%clk 0:00:19]}  Ne4 {[%clk 0:00:07]} 77. Kf1 {[%clk 0:00:19]}  Kf4 {[%clk 0:00:08]} 78. Kg2 {[%clk 0:00:20]}  g3 {[%clk 0:00:08]} 79. Kg1 {[%clk 0:00:21]}  Kf3 {[%clk 0:00:08]} 80. Kf1 {[%clk 0:00:22]}  Nf2 {[%clk 0:00:07]} 81. Kg1 {[%clk 0:00:22]}  Nh3+ {[%clk 0:00:07]} 82. Kh1 {[%clk 0:00:22]}  g2+ {[%clk 0:00:07]} 83. Kh2 {[%clk 0:00:23]}  g1=Q+ {[%clk 0:00:08]} 84. Kxh3 {[%clk 0:00:24]}  Qg3# {[%clk 0:00:08]} 0-1


[Site "https://www.chess.com"]

[Event "Early Titled Tuesday Blitz | February 8 2022"]
[White "Ljukin, Sergei"]
[Black "parintele_chess"]
[WhiteFideId "14102200"]
[WhiteElo "2312"]
[BlackElo "2237"]
[Result "1-0"]
[Round "04"]
[TimeControl "180+1"]
[Date "2022.02.08"]
[WhiteClock "0:00:18"]
[BlackClock "0:00:12"]

1. e4 {[%clk 0:02:55]}  e5 {[%clk 0:02:59]} 2. Nf3 {[%clk 0:02:55]}  Nc6 {[%clk 0:02:59]} 3. Bb5 {[%clk 0:02:55]}  a6 {[%clk 0:02:59]} 4. Ba4 {[%clk 0:02:55]}  Nf6 {[%clk 0:02:59]} 5. Qe2 {[%clk 0:02:55]}  Be7 {[%clk 0:02:50]} 6. c3 {[%clk 0:02:54]}  O-O {[%clk 0:02:46]} 7. O-O {[%clk 0:02:54]}  d5 {[%clk 0:02:31]} 8. d3 {[%clk 0:02:53]}  Bg4 {[%clk 0:02:23]} 9. h3 {[%clk 0:02:50]}  Bh5 {[%clk 0:02:22]} 10. g4 {[%clk 0:02:48]}  Bg6 {[%clk 0:02:22]} 11. Bxc6 {[%clk 0:02:47]}  bxc6 {[%clk 0:02:21]} 12. Nxe5 {[%clk 0:02:47]}  dxe4 {[%clk 0:02:17]} 13. Nxg6 {[%clk 0:02:46]}  hxg6 {[%clk 0:02:07]} 14. dxe4 {[%clk 0:02:46]}  Bc5 {[%clk 0:02:03]} 15. Be3 {[%clk 0:02:45]}  Qe7 {[%clk 0:01:59]} 16. Nd2 {[%clk 0:02:39]}  Rfe8 {[%clk 0:01:54]} 17. Rfe1 {[%clk 0:02:23]}  Rab8 {[%clk 0:01:44]} 18. Bxc5 {[%clk 0:02:13]}  Qxc5 {[%clk 0:01:45]} 19. Nb3 {[%clk 0:02:13]}  Qe5 {[%clk 0:01:42]} 20. f3 {[%clk 0:01:13]}  Nd5 {[%clk 0:01:25]} 21. Qf1 {[%clk 0:01:10]}  Nf4 {[%clk 0:01:11]} 22. Rab1 {[%clk 0:01:05]}  a5 {[%clk 0:00:59]} 23. Nd4 {[%clk 0:01:03]}  Qc5 {[%clk 0:00:54]} 24. Kh2 {[%clk 0:00:55]}  Red8 {[%clk 0:00:49]} 25. Red1 {[%clk 0:00:47]}  Rb6 {[%clk 0:00:26]} 26. Qf2 {[%clk 0:00:40]}  Qe5 {[%clk 0:00:25]} 27. Qg3 {[%clk 0:00:39]}  g5 {[%clk 0:00:24]} 28. b3 {[%clk 0:00:23]}  Qf6 {[%clk 0:00:16]} 29. Nf5 {[%clk 0:00:19]}  Rxd1 {[%clk 0:00:14]} 30. Rxd1 {[%clk 0:00:19]}  Rb8 {[%clk 0:00:15]} 31. h4 {[%clk 0:00:18]}  Rd8 {[%clk 0:00:14]} 32. hxg5 {[%clk 0:00:17]}  Qxg5 {[%clk 0:00:12]} 33. Rxd8+ {[%clk 0:00:17]}  Qxd8 {[%clk 0:00:12]} 34. Qxf4 {[%clk 0:00:18]} 1-0


[Site "https://www.chess.com"]

[Event "Early Titled Tuesday Blitz | February 8 2022"]
[White "Lopez Del Alamo, Antonio"]
[Black "Kovanova, Baira"]
[WhiteFideId "2227339"]
[BlackFideId "4164083"]
[WhiteElo "2082"]
[BlackElo "2190"]
[Result "1-0"]
[Round "04"]
[TimeControl "180+1"]
[Date "2022.02.08"]
[WhiteClock "0:01:45"]
[BlackClock "0:00:58"]

1. e4 {[%clk 0:03:00]}  e5 {[%clk 0:02:43]} 2. Bc4 {[%clk 0:02:59]}  Nf6 {[%clk 0:02:41]} 3. d3 {[%clk 0:02:57]}  Nc6 {[%clk 0:02:40]} 4. Nc3 {[%clk 0:02:56]}  Bc5 {[%clk 0:02:39]} 5. f4 {[%clk 0:02:55]}  d6 {[%clk 0:02:38]} 6. Nf3 {[%clk 0:02:53]}  Be6 {[%clk 0:02:35]} 7. Bb5 {[%clk 0:02:51]}  exf4 {[%clk 0:02:27]} 8. d4 {[%clk 0:02:48]}  Bb4 {[%clk 0:02:23]} 9. d5 {[%clk 0:02:27]}  Nxe4 {[%clk 0:02:13]} 10. dxc6 {[%clk 0:02:23]}  Nxc3 {[%clk 0:01:48]} 11. bxc3 {[%clk 0:02:16]}  Bxc3+ {[%clk 0:01:48]} 12. Bd2 {[%clk 0:02:17]}  Bxd2+ {[%clk 0:01:37]} 13. Qxd2 {[%clk 0:02:16]}  b6 {[%clk 0:01:33]} 14. Qxf4 {[%clk 0:02:13]}  O-O {[%clk 0:01:31]} 15. O-O {[%clk 0:02:12]}  Qe8 {[%clk 0:01:25]} 16. Rae1 {[%clk 0:02:07]}  a6 {[%clk 0:01:24]} 17. Bd3 {[%clk 0:02:02]}  Qxc6 {[%clk 0:01:23]} 18. Kh1 {[%clk 0:02:01]}  Qc5 {[%clk 0:01:13]} 19. Ng5 {[%clk 0:01:59]}  h6 {[%clk 0:00:58]} 20. Qe4 {[%clk 0:01:45]} 1-0


[Site "https://www.chess.com"]

[Event "Early Titled Tuesday Blitz | February 8 2022"]
[White "Lucas, Arthur"]
[Black "Pakleza, Zbigniew"]
[WhiteFideId "26093073"]
[BlackFideId "1119290"]
[WhiteElo "2129"]
[BlackElo "2467"]
[Result "0-1"]
[Round "04"]
[TimeControl "180+1"]
[Date "2022.02.08"]
[WhiteClock "0:00:01"]
[BlackClock "0:00:16"]

1. Nf3 {[%clk 0:03:00]}  d5 {[%clk 0:02:58]} 2. b3 {[%clk 0:03:01]}  Nf6 {[%clk 0:02:58]} 3. Bb2 {[%clk 0:03:01]}  Bf5 {[%clk 0:02:59]} 4. d3 {[%clk 0:03:00]}  e6 {[%clk 0:02:59]} 5. Nh4 {[%clk 0:03:00]}  Bg6 {[%clk 0:02:59]} 6. Nd2 {[%clk 0:02:53]}  Nbd7 {[%clk 0:02:51]} 7. g3 {[%clk 0:02:52]}  Be7 {[%clk 0:02:49]} 8. Bg2 {[%clk 0:02:51]}  O-O {[%clk 0:02:48]} 9. Nxg6 {[%clk 0:02:50]}  hxg6 {[%clk 0:02:48]} 10. O-O {[%clk 0:02:41]}  c6 {[%clk 0:02:48]} 11. e4 {[%clk 0:02:40]}  a5 {[%clk 0:02:47]} 12. a4 {[%clk 0:02:37]}  Qb6 {[%clk 0:02:43]} 13. Qe2 {[%clk 0:02:23]}  Bc5 {[%clk 0:02:35]} 14. Nf3 {[%clk 0:02:00]}  Rfd8 {[%clk 0:02:31]} 15. d4 {[%clk 0:01:49]}  Be7 {[%clk 0:02:24]} 16. e5 {[%clk 0:01:48]}  Nh7 {[%clk 0:02:18]} 17. h4 {[%clk 0:01:43]}  c5 {[%clk 0:02:16]} 18. dxc5 {[%clk 0:01:23]}  Nxc5 {[%clk 0:02:09]} 19. Bd4 {[%clk 0:01:21]}  Rac8 {[%clk 0:02:02]} 20. Rab1 {[%clk 0:01:13]}  Nf8 {[%clk 0:01:43]} 21. c3 {[%clk 0:01:07]}  Qc7 {[%clk 0:01:37]} 22. Ng5 {[%clk 0:00:52]}  Ncd7 {[%clk 0:01:17]} 23. f4 {[%clk 0:00:44]}  Nb8 {[%clk 0:00:58]} 24. h5 {[%clk 0:00:36]}  Nc6 {[%clk 0:00:56]} 25. hxg6 {[%clk 0:00:32]}  Nxg6 {[%clk 0:00:57]} 26. Qh5 {[%clk 0:00:15]}  Bxg5 {[%clk 0:00:57]} 27. Qxg5 {[%clk 0:00:14]}  Nxd4 {[%clk 0:00:57]} 28. cxd4 {[%clk 0:00:15]}  Qe7 {[%clk 0:00:58]} 29. Qh5 {[%clk 0:00:11]}  Rc3 {[%clk 0:00:56]} 30. Rf3 {[%clk 0:00:07]}  Rdc8 {[%clk 0:00:50]} 31. Rbf1 {[%clk 0:00:07]}  Qb4 {[%clk 0:00:48]} 32. f5 {[%clk 0:00:04]}  Qxd4+ {[%clk 0:00:47]} 33. Kh2 {[%clk 0:00:05]}  Qxe5 {[%clk 0:00:39]} 34. Qg4 {[%clk 0:00:02]}  Rxf3 {[%clk 0:00:33]} 35. Rxf3 {[%clk 0:00:03]}  Nf8 {[%clk 0:00:21]} 36. f6 {[%clk 0:00:02]}  Ng6 {[%clk 0:00:20]} 37. fxg7 {[%clk 0:00:02]}  Kxg7 {[%clk 0:00:20]} 38. Bh3 {[%clk 0:00:02]}  Rh8 {[%clk 0:00:21]} 39. Kg2 {[%clk 0:00:03]}  Qe4 {[%clk 0:00:19]} 40. Qxe4 {[%clk 0:00:03]}  dxe4 {[%clk 0:00:20]} 41. Re3 {[%clk 0:00:04]}  f5 {[%clk 0:00:20]} 42. Rc3 {[%clk 0:00:04]}  Kf6 {[%clk 0:00:20]} 43. Rc7 {[%clk 0:00:04]}  f4 {[%clk 0:00:18]} 44. g4 {[%clk 0:00:01]}  Ne5 {[%clk 0:00:16]} 0-1


[Site "https://www.chess.com"]

[Event "Early Titled Tuesday Blitz | February 8 2022"]
[White "Madaminov, Mukhiddin"]
[Black "Shevchenko, Kirill"]
[WhiteFideId "14210703"]
[BlackFideId "14129574"]
[WhiteElo "1916"]
[BlackElo "2624"]
[Result "0-1"]
[Round "04"]
[TimeControl "180+1"]
[Date "2022.02.08"]
[WhiteClock "0:01:28"]
[BlackClock "0:01:08"]

1. d4 {[%clk 0:03:00]}  Nf6 {[%clk 0:02:57]} 2. Nc3 {[%clk 0:02:59]}  d5 {[%clk 0:02:57]} 3. Bf4 {[%clk 0:02:57]}  c5 {[%clk 0:02:57]} 4. e3 {[%clk 0:02:57]}  cxd4 {[%clk 0:02:57]} 5. exd4 {[%clk 0:02:58]}  a6 {[%clk 0:02:58]} 6. Nf3 {[%clk 0:02:58]}  Nc6 {[%clk 0:02:58]} 7. Ne5 {[%clk 0:02:59]}  e6 {[%clk 0:02:58]} 8. Nxc6 {[%clk 0:02:59]}  bxc6 {[%clk 0:02:59]} 9. Na4 {[%clk 0:03:00]}  Bd6 {[%clk 0:02:58]} 10. Bxd6 {[%clk 0:02:55]}  Qxd6 {[%clk 0:02:58]} 11. Bd3 {[%clk 0:02:56]}  O-O {[%clk 0:02:57]} 12. O-O {[%clk 0:02:55]}  Rb8 {[%clk 0:02:56]} 13. c3 {[%clk 0:02:52]}  Nd7 {[%clk 0:02:49]} 14. b4 {[%clk 0:02:43]}  e5 {[%clk 0:02:48]} 15. dxe5 {[%clk 0:02:41]}  Nxe5 {[%clk 0:02:48]} 16. Re1 {[%clk 0:02:41]}  h6 {[%clk 0:02:41]} 17. Nc5 {[%clk 0:02:39]}  a5 {[%clk 0:02:40]} 18. a3 {[%clk 0:02:38]}  axb4 {[%clk 0:02:38]} 19. axb4 {[%clk 0:02:39]}  Bg4 {[%clk 0:02:26]} 20. Qd2 {[%clk 0:02:27]}  Ra8 {[%clk 0:02:24]} 21. Bf1 {[%clk 0:02:23]}  Qg6 {[%clk 0:02:16]} 22. Qf4 {[%clk 0:02:10]}  Rxa1 {[%clk 0:02:12]} 23. Rxa1 {[%clk 0:02:11]}  Nc4 {[%clk 0:02:12]} 24. Bxc4 {[%clk 0:02:06]}  dxc4 {[%clk 0:02:13]} 25. Qxc4 {[%clk 0:02:05]}  Bf3 {[%clk 0:02:12]} 26. Qf1 {[%clk 0:02:04]}  Re8 {[%clk 0:01:25]} 27. Kh1 {[%clk 0:02:02]}  Be2 {[%clk 0:01:25]} 28. Qb1 {[%clk 0:01:57]}  Qf6 {[%clk 0:01:23]} 29. Qe1 {[%clk 0:01:56]}  Kh7 {[%clk 0:01:16]} 30. Ra2 {[%clk 0:01:46]}  Qg6 {[%clk 0:01:11]} 31. h3 {[%clk 0:01:27]}  Bf3 {[%clk 0:01:09]} 32. Qf1 {[%clk 0:01:28]}  Re1 {[%clk 0:01:08]} 0-1


[Site "https://www.chess.com"]